fUST/lending_fUST_20250519
["ID","MTS","AMOUNT","RATE_DAILY","PERIOD"]
[361602107,1747633841692,-450.0,0.00019726,2]
[361602109,1747633841702,-450.0,0.00019726,2]
[361602111,1747633841711,-450.0,0.00019726,2]
[361602113,1747633841721,-476.83088939,0.00019726,2]
[361602115,1747633841730,-450.0,0.00019726,2]
[361602117,1747633841739,-450.0,0.00019726,2]
[361602119,1747633841750,-158.6949582,0.00019726,2]
[361602121,1747633841759,-450.0,0.00019726,2]
[361602123,1747633841768,-450.0,0.00019726,2]
[361602125,1747633841778,-450.0,0.00019726,2]
[361602127,1747633841789,-450.0,0.00019726,2]
[361602129,1747633841799,-450.0,0.00019726,2]
[361602131,1747633841808,-450.0,0.00019726,2]
[361602133,1747633841818,-450.0,0.00019726,2]
[361602135,1747633841827,-450.0,0.00019726,2]
[361602137,1747633841836,-450.0,0.00019726,2]
[361602139,1747633841846,-450.0,0.00019726,2]
[361602141,1747633841855,-450.0,0.00019726,2]
[361602143,1747633841866,-415.48013651,0.00019726,2]
[361602145,1747633841877,-450.0,0.00019726,2]
[361602147,1747633841886,-450.0,0.00019726,2]
[361602149,1747633841895,-450.0,0.00019726,2]
[361602151,1747633841906,-450.0,0.00019726,2]
[361602153,1747633841915,-450.0,0.00019726,2]
[361602155,1747633841924,-633.58,0.00019726,2]
[361602157,1747633841934,-450.0,0.00019726,2]
[361602159,1747633841944,-450.0,0.00019726,2]
[361602161,1747633841954,-450.0,0.00019726,2]
[361602163,1747633841963,-450.0,0.00019726,2]
[361602165,1747633841973,-450.0,0.00019726,2]
[361602167,1747633841982,-450.0,0.00019726,2]
[361602169,1747633841991,-450.0,0.00019726,2]
[361602171,1747633842000,-450.0,0.00019726,2]
[361602173,1747633842009,-450.0,0.00019726,2]
[361602175,1747633842018,-450.0,0.00019726,2]
[361602177,1747633842027,-450.0,0.00019726,2]
[361602179,1747633842038,-450.0,0.00019726,2]
[361602181,1747633842047,-450.0,0.00019726,2]
[361602183,1747633842056,-450.0,0.00019726,2]
[361602185,1747633842066,-439.00429744,0.00019726,2]
[361602187,1747633842075,-765.19,0.00019726,2]
[361602189,1747633842085,-450.0,0.00019726,2]
[361602191,1747633842095,-450.0,0.00019726,2]
[361602193,1747633842104,-450.0,0.00019726,2]
[361602195,1747633842113,-450.0,0.00019726,2]
[361602198,1747633842148,-305.30944318,0.00019726,2]
[361602199,1747633842157,-450.0,0.00019726,2]
[361602202,1747633842166,-450.0,0.00019726,2]
[361602204,1747633842175,-450.0,0.00019726,2]
[361602206,1747633842184,-152.74199857,0.00019726,2]
[361602208,1747633842194,-450.0,0.00019726,2]
[361602210,1747633842203,-450.0,0.00019726,2]
[361602213,1747633842212,-957.57,0.00019726,2]
[361602216,1747633842222,-450.0,0.00019726,2]
[361602219,1747633842231,-450.0,0.00019726,2]
[361602222,1747633842240,-450.0,0.00019726,2]
[361602225,1747633842249,-450.0,0.00019726,2]
[361602226,1747633842258,-450.0,0.00019726,2]
[361602229,1747633842268,-450.0,0.00019726,2]
[361602231,1747633842277,-450.0,0.00019726,2]
[361602235,1747633842287,-450.0,0.00019726,2]
[361602238,1747633842297,-450.0,0.00019726,2]
[361602241,1747633842306,-450.0,0.00019726,2]
[361602243,1747633842315,-450.0,0.00019726,2]
[361602246,1747633842325,-450.0,0.00019726,2]
[361602248,1747633842334,-450.0,0.00019726,2]
[361602251,1747633842344,-577.7015335,0.00019726,2]
[361602253,1747633842353,-450.0,0.00019726,2]
[361602255,1747633842362,-450.0,0.00019726,2]
[361602258,1747633842371,-450.0,0.00019726,2]
[361602260,1747633842381,-450.0,0.00019726,2]
[361602262,1747633842390,-450.0,0.00019726,2]
[361602264,1747633842399,-530.45487367,0.00019726,2]
[361602266,1747633842409,-898.49,0.00019726,2]
[361602269,1747633842418,-450.0,0.00019726,2]
[361602272,1747633842427,-450.0,0.00019726,2]
[361602275,1747633842437,-450.0,0.00019726,2]
[361602278,1747633842447,-342.81986832,0.00019726,2]
[361602281,1747633842457,-450.0,0.00019726,2]
[361602284,1747633842466,-450.0,0.00019726,2]
[361602287,1747633842475,-450.0,0.00019726,2]
[361602290,1747633842484,-450.0,0.00019726,2]
[361602293,1747633842493,-450.0,0.00019726,2]
[361602296,1747633842502,-450.0,0.00019726,2]
[361602299,1747633842512,-450.0,0.00019726,2]
[361602302,1747633842521,-317.45172381,0.00019726,2]
[361602305,1747633842530,-450.0,0.00019726,2]
[361602307,1747633842539,-450.0,0.00019726,2]
[361602309,1747633842548,-450.0,0.00019726,2]
[361602311,1747633842558,-450.0,0.00019726,2]
[361602313,1747633842567,-450.0,0.00019726,2]
[361602315,1747633842576,-450.0,0.00019726,2]
[361602317,1747633842586,-450.0,0.00019726,2]
[361602319,1747633842595,-450.0,0.00019726,2]
[361602321,1747633842604,-1226.4,0.00019726,2]
[361602323,1747633842613,-450.0,0.00019726,2]
[361602325,1747633842623,-450.0,0.00019726,2]
[361602327,1747633842632,-450.0,0.00019726,2]
[361602329,1747633842642,-450.0,0.00019726,2]
[361602331,1747633842652,-450.0,0.00019726,2]
[361602333,1747633842661,-450.0,0.00019726,2]
[361602335,1747633842670,-450.0,0.00019726,2]
[361602337,1747633842679,-450.0,0.00019726,2]
[361602339,1747633842688,-450.0,0.00019726,2]
[361602341,1747633842698,-450.0,0.00019726,2]
[361602343,1747633842707,-450.0,0.00019726,2]
[361602345,1747633842716,-450.0,0.00019726,2]
[361602347,1747633842725,-450.0,0.00019726,2]
[361602349,1747633842734,-450.0,0.00019726,2]
[361602351,1747633842743,-450.0,0.00019726,2]
[361602353,1747633842752,-450.0,0.00019726,2]
[361602355,1747633842761,-450.0,0.00019726,2]
[361602357,1747633842770,-571.02996591,0.00019726,2]
[361602359,1747633842781,-450.0,0.00019726,2]
[361602361,1747633842790,-450.0,0.00019726,2]
[361602363,1747633842799,-459.12492678,0.00019726,2]
[361602365,1747633842809,-450.0,0.00019726,2]
[361602367,1747633842819,-450.0,0.00019726,2]
[361602369,1747633842828,-450.0,0.00019726,2]
[361602371,1747633842837,-935.25,0.00019726,2]
[361602373,1747633842847,-450.0,0.00019726,2]
[361602375,1747633842858,-450.0,0.00019726,2]
[361602377,1747633842867,-450.0,0.00019726,2]
[361602379,1747633842877,-450.0,0.00019726,2]
[361602381,1747633842886,-450.0,0.00019726,2]
[361602383,1747633842895,-450.0,0.00019726,2]
[361602385,1747633842905,-475.64272119,0.00019726,2]
[361602387,1747633842914,-450.0,0.00019726,2]
[361602389,1747633842923,-450.0,0.00019726,2]
[361602391,1747633842932,-450.0,0.00019726,2]
[361602393,1747633842942,-450.0,0.00019726,2]
[361602395,1747633842952,-556.25349897,0.00019726,2]
[361602397,1747633842962,-450.0,0.00019726,2]
[361602399,1747633842971,-450.0,0.00019726,2]
[361602402,1747633842980,-450.0,0.00019726,2]
[361602404,1747633842990,-450.0,0.00019726,2]
[361602406,1747633842999,-450.0,0.00019726,2]
[361602407,1747633843008,-461.30502891,0.00019726,2]
[361602410,1747633843017,-201.00447792,0.00019726,2]
[361602412,1747633843026,-450.0,0.00019726,2]
[361602415,1747633843037,-468.37436985,0.00019726,2]
[361602417,1747633843047,-517.05333442,0.00019831,2]
[361602420,1747633843056,-501.15644338,0.0001988,2]
[361602421,1747633843065,-150.069,0.00019934,2]
[361602423,1747633843074,-150.1,0.00019934,2]
[361602425,1747633843084,-228.665,0.00019934,2]
[361602428,1747633843094,-500.0,0.00019944,2]
[361602431,1747633843104,-736.58208363,0.0002,60]
[361602433,1747633843113,-160.0,0.0002,4]
[361602435,1747633843123,-559.0,0.0002,2]
[361602436,1747633843132,-1467.0,0.0002,2]
[361602438,1747633843141,-450.0,0.0002,2]
[361602440,1747633843150,-2000.0,0.0002,3]
[361602442,1747633843159,-12897.0434612,0.0002,5]
[361602444,1747633843168,-450.0,0.0002,2]
[361602446,1747633843177,-239.20259573,0.0002,2]
[361602448,1747633843186,-467.56108384,0.0002,2]
[361602450,1747633843195,-450.0,0.0002,2]
[361602452,1747633843206,-450.0,0.0002,2]
[361602454,1747633843215,-321.1777991,0.0002,2]
[361602456,1747633843225,-450.0,0.0002,2]
[361602458,1747633843234,-462.4827074,0.0002,2]
[361602460,1747633843244,-450.0,0.0002,2]
[361602462,1747633843253,-450.0,0.0002,2]
[361602464,1747633843263,-420.64588044,0.0002,2]
[361602466,1747633843271,-429.79996301,0.0002,2]
[361602468,1747633843281,-450.0,0.0002,2]
[361602470,1747633843290,-450.0,0.0002,2]
[361602473,1747633843300,-476.07648509,0.0002,2]
[361602475,1747633843310,-486.71018652,0.0002,2]
[361602477,1747633843319,-450.0,0.0002,2]
[361602479,1747633843328,-450.0,0.0002,2]
[361602481,1747633843337,-450.0,0.0002,2]
[361602483,1747633843346,-450.0,0.0002,2]
[361602485,1747633843355,-300.14210523,0.0002,2]
[361602487,1747633843364,-450.0,0.0002,2]
[361602488,1747633843374,-450.0,0.0002,2]
[361602491,1747633843383,-450.0,0.0002,2]
[361602493,1747633843393,-450.0,0.0002,2]
[361602495,1747633843402,-572.35504786,0.0002,2]
[361602497,1747633843411,-450.0,0.0002,2]
[361602499,1747633843420,-450.0,0.0002,2]
[361602501,1747633843430,-450.0,0.0002,2]
[361602503,1747633843439,-2998.99,0.0002,2]
[361602505,1747633843449,-450.0,0.0002,2]
[361602507,1747633843460,-450.0,0.0002,2]
[361602509,1747633843468,-450.0,0.0002,2]
[361602522,1747633843580,-151.038123,0.0002,2]
[361602524,1747633843590,-471.73762584,0.0002,2]
[361602526,1747633843600,-450.0,0.0002,2]
[361602528,1747633843610,-363.30471517,0.0002,2]
[361602530,1747633843620,-450.0,0.0002,2]
[361602532,1747633843630,-450.0,0.0002,2]
[361602534,1747633843639,-450.0,0.0002,2]
[361602536,1747633843651,-450.0,0.0002,2]
[361602538,1747633843661,-450.0,0.0002,2]
[361602540,1747633843670,-449.68678662,0.0002,2]
[361602542,1747633843680,-450.0,0.0002,2]
[361602544,1747633843690,-450.0,0.0002,2]
[361602546,1747633843699,-450.0,0.0002,2]
[361602548,1747633843709,-450.0,0.0002,2]
[361602550,1747633843718,-463.63859239,0.0002,2]
[361602552,1747633843728,-419.69884134,0.0002,2]
[361602554,1747633843737,-450.0,0.0002,2]
[361602556,1747633843746,-450.0,0.0002,2]
[361602558,1747633843756,-453.07084511,0.0002,2]
[361602560,1747633843766,-450.0,0.0002,2]
[361602562,1747633843776,-450.0,0.0002,2]
[361602564,1747633843791,-450.0,0.0002,2]
[361602566,1747633843799,-450.0,0.0002,2]
[361602568,1747633843809,-450.0,0.0002,2]
[361602570,1747633843819,-465.81751872,0.0002,2]
[361602572,1747633843829,-450.0,0.0002,2]
[361602574,1747633843838,-151.0,0.0002,2]
[361602576,1747633843847,-450.0,0.0002,2]
[361602578,1747633843857,-450.0,0.0002,2]
[361602580,1747633843868,-450.0,0.0002,2]
[361602582,1747633843878,-465.43073059,0.0002,2]
[361602584,1747633843888,-450.0,0.0002,2]
[361602586,1747633843898,-633.58,0.0002,2]
[361602588,1747633843907,-450.0,0.0002,2]
[361602590,1747633843916,-450.0,0.0002,2]
[361602592,1747633843926,-463.63674268,0.0002,2]
[361602594,1747633843935,-450.0,0.0002,2]
[361602596,1747633843945,-450.0,0.0002,2]
[361602598,1747633843954,-450.0,0.0002,2]
[361602600,1747633843963,-360.98933156,0.0002,2]
[361602602,1747633843972,-450.0,0.0002,2]
[361602604,1747633843982,-151.0,0.0002,2]
[361602606,1747633843991,-450.0,0.0002,2]
[361602608,1747633844000,-450.0,0.0002,2]
[361602610,1747633844009,-450.0,0.0002,2]
[361602612,1747633844018,-450.0,0.0002,2]
[361602614,1747633844029,-450.0,0.0002,2]
[361602616,1747633844041,-450.0,0.0002,2]
[361602619,1747633844054,-765.19,0.0002,2]
[361602621,1747633844066,-450.0,0.0002,2]
[361602623,1747633844078,-450.0,0.0002,2]
[361602625,1747633844089,-450.0,0.0002,2]
[361602627,1747633844100,-450.0,0.0002,2]
[361602629,1747633844109,-466.85728501,0.0002,2]
[361602631,1747633844118,-450.0,0.0002,2]
[361602633,1747633844129,-450.0,0.0002,2]
[361602635,1747633844137,-450.0,0.0002,2]
[361602637,1747633844146,-450.0,0.0002,2]
[361602639,1747633844156,-957.57,0.0002,2]
[361602641,1747633844165,-450.0,0.0002,2]
[361602643,1747633844174,-450.0,0.0002,2]
[361602645,1747633844184,-450.0,0.0002,2]
[361602647,1747633844193,-450.0,0.0002,2]
[361602649,1747633844202,-450.0,0.0002,2]
[361602651,1747633844211,-450.0,0.0002,2]
[361602653,1747633844221,-450.0,0.0002,2]
[361602655,1747633844230,-450.0,0.0002,2]
[361602657,1747633844239,-461.77500449,0.0002,2]
[361602659,1747633844248,-450.0,0.0002,2]
[361602661,1747633844257,-450.0,0.0002,2]
[361602663,1747633844266,-462.34045787,0.0002,2]
[361602665,1747633844275,-450.0,0.0002,2]
[361602667,1747633844284,-400.0482656,0.0002,2]
[361602669,1747633844293,-450.0,0.0002,2]
[361602671,1747633844302,-475.78477,0.0002,2]
[361602673,1747633844311,-486.65647836,0.0002,2]
[361602675,1747633844320,-450.0,0.0002,2]
[361602677,1747633844329,-898.49,0.0002,2]
[361602679,1747633844338,-450.0,0.0002,2]
[361602681,1747633844347,-464.41364903,0.0002,2]
[361602683,1747633844357,-394.70012125,0.0002,2]
[361602685,1747633844366,-450.0,0.0002,2]
[361602687,1747633844378,-450.0,0.0002,2]
[361602689,1747633844387,-450.0,0.0002,2]
[361602691,1747633844396,-427.70705038,0.0002,2]
[361602693,1747633844406,-450.0,0.0002,2]
[361602695,1747633844415,-450.0,0.0002,2]
[361602697,1747633844424,-450.0,0.0002,2]
[361602699,1747633844433,-450.0,0.0002,2]
[361602701,1747633844442,-450.0,0.0002,2]
[361602703,1747633844451,-450.0,0.0002,2]
[361602705,1747633844461,-450.0,0.0002,2]
[361602707,1747633844470,-450.0,0.0002,2]
[361602709,1747633844478,-450.0,0.0002,2]
[361602711,1747633844487,-450.0,0.0002,2]
[361602713,1747633844496,-450.0,0.0002,2]
[361602715,1747633844505,-1226.4,0.0002,2]
[361602717,1747633844514,-450.0,0.0002,2]
[361602719,1747633844524,-450.0,0.0002,2]
[361602721,1747633844533,-450.0,0.0002,2]
[361602723,1747633844542,-450.0,0.0002,2]
[361602725,1747633844552,-450.0,0.0002,2]
[361602727,1747633844561,-450.0,0.0002,2]
[361602729,1747633844570,-450.0,0.0002,2]
[361602731,1747633844579,-450.0,0.0002,2]
[361602733,1747633844588,-450.0,0.0002,2]
[361602735,1747633844597,-202.72767584,0.0002,2]
[361602737,1747633844606,-450.0,0.0002,2]
[361602739,1747633844615,-450.0,0.0002,2]
[361602741,1747633844624,-450.0,0.0002,2]
[361602743,1747633844633,-450.0,0.0002,2]
[361602745,1747633844642,-461.00429815,0.0002,2]
[361602747,1747633844651,-420.11031123,0.0002,2]
[361602749,1747633844660,-450.0,0.0002,2]
[361602751,1747633844669,-450.0,0.0002,2]
[361602753,1747633844678,-450.0,0.0002,2]
[361602755,1747633844687,-450.0,0.0002,2]
[361602757,1747633844697,-450.0,0.0002,2]
[361602759,1747633844706,-450.0,0.0002,2]
[361602761,1747633844716,-935.25,0.0002,2]
[361602763,1747633844725,-450.0,0.0002,2]
[361602765,1747633844734,-450.0,0.0002,2]
[361602767,1747633844743,-463.52214445,0.0002,2]
[361602769,1747633844752,-250.59362859,0.0002,2]
[361602771,1747633844761,-450.0,0.0002,2]
[361602773,1747633844771,-450.0,0.0002,2]
[361602775,1747633844782,-450.0,0.0002,2]
[361602776,1747633844793,-4000.0,0.0002,4]
[361602778,1747633844802,-450.0,0.0002,2]
[361602781,1747633844811,-450.0,0.0002,2]
[361602783,1747633844822,-486.92117889,0.0002,2]
[361602784,1747633844831,-450.0,0.0002,2]
[361602787,1747633844841,-157.85,0.0002,2]
[361602788,1747633844851,-157.85,0.0002,2]
[361602790,1747633844861,-450.0,0.0002,2]
[361602792,1747633844871,-450.0,0.0002,2]
[361602795,1747633844882,-450.0,0.0002,2]
[361602796,1747633844891,-450.0,0.0002,2]
[361602798,1747633844900,-450.0,0.0002,2]
[361602800,1747633844910,-1200.0,0.00020098,2]
[361602803,1747633844921,-517.05333442,0.00020107,2]
[361602805,1747633844931,-1000.0,0.00020113,2]
[361602807,1747633844942,-3996.41450068,0.0002018,2]
[361602809,1747633844951,-499.16355,0.00020187,2]
[361602811,1747633844961,-450.0,0.00020273,2]
[361602813,1747633844970,-450.0,0.00020273,2]
[361602814,1747633844980,-450.0,0.00020273,2]
[361602816,1747633844991,-554.482483,0.00020273,2]
[361602818,1747633845001,-450.0,0.00020273,2]
[361602821,1747633845012,-574.90144501,0.00020273,2]
[361602823,1747633845022,-450.0,0.00020273,2]
[361602825,1747633845031,-160.7375625,0.00020273,2]
[361602827,1747633845041,-450.0,0.00020273,2]
[361602829,1747633845050,-382.04050791,0.00020273,2]
[361602830,1747633845059,-388.79750989,0.00020273,2]
[361602832,1747633845069,-450.0,0.00020273,2]
[361602834,1747633845078,-450.0,0.00020273,2]
[361602836,1747633845088,-597.23789352,0.00020273,2]
[361602839,1747633845098,-450.0,0.00020273,2]
[361602841,1747633845107,-450.0,0.00020273,2]
[361602843,1747633845116,-450.0,0.00020273,2]
[361602845,1747633845125,-419.69130417,0.00020273,2]
[361602847,1747633845135,-418.26416313,0.00020273,2]
[361602849,1747633845143,-450.0,0.00020273,2]
[361602851,1747633845153,-2998.99,0.00020273,2]
[361602853,1747633845162,-450.0,0.00020273,2]
[361602854,1747633845170,-263.10796981,0.00020273,2]
[361602856,1747633845179,-450.0,0.00020273,2]
[361602859,1747633845190,-425.52698861,0.00020273,2]
[361602860,1747633845198,-450.0,0.00020273,2]
[361602863,1747633845208,-450.0,0.00020273,2]
[361602865,1747633845217,-357.01392998,0.00020273,2]
[361602867,1747633845226,-450.0,0.00020273,2]
[361602869,1747633845235,-450.0,0.00020273,2]
[361602871,1747633845244,-516.33929528,0.00020273,2]
[361602873,1747633845253,-450.0,0.00020273,2]
[361602875,1747633845262,-359.58718104,0.00020273,2]
[361602878,1747633845271,-321.70657945,0.00020273,2]
[361602881,1747633845280,-450.0,0.00020273,2]
[361602884,1747633845289,-396.96803494,0.00020273,2]
[361602887,1747633845299,-457.64061236,0.00020273,2]
[361602889,1747633845308,-450.0,0.00020273,2]
[361602892,1747633845317,-450.0,0.00020273,2]
[361602897,1747633845332,-580.45808654,0.00020273,2]
[361602900,1747633845345,-450.0,0.00020273,2]
[361602903,1747633845355,-450.0,0.00020273,2]
[361602906,1747633845364,-450.0,0.00020273,2]
[361602909,1747633845374,-450.0,0.00020273,2]
[361602912,1747633845383,-450.0,0.00020273,2]
[361602915,1747633845393,-463.48810425,0.00020273,2]
[361602918,1747633845403,-633.58,0.00020273,2]
[361602920,1747633845412,-450.0,0.00020273,2]
[361602922,1747633845422,-450.0,0.00020273,2]
[361602923,1747633845432,-187.37999813,0.00020273,2]
[361602924,1747633845442,-450.0,0.00020273,2]
[361602925,1747633845452,-450.0,0.00020273,2]
[361602926,1747633845462,-498.18478248,0.00020273,2]
[361602927,1747633845471,-450.0,0.00020273,2]
[361602928,1747633845483,-450.0,0.00020273,2]
[361602929,1747633845493,-450.0,0.00020273,2]
[361602930,1747633845503,-450.0,0.00020273,2]
[361602931,1747633845513,-450.0,0.00020273,2]
[361602932,1747633845522,-450.0,0.00020273,2]
[361602933,1747633845532,-765.19,0.00020273,2]
[361602934,1747633845542,-450.0,0.00020273,2]
[361602935,1747633845552,-411.71599873,0.00020273,2]
[361602936,1747633845561,-469.42401544,0.00020273,2]
[361602937,1747633845571,-450.0,0.00020273,2]
[361602938,1747633845581,-450.0,0.00020273,2]
[361602939,1747633845591,-398.67660176,0.00020273,2]
[361602940,1747633845601,-450.0,0.00020273,2]
[361602941,1747633845611,-450.0,0.00020273,2]
[361602942,1747633845621,-957.57,0.00020273,2]
[361602944,1747633845631,-450.0,0.00020273,2]
[361602946,1747633845641,-450.0,0.00020273,2]
[361602948,1747633845650,-450.0,0.00020273,2]
[361602950,1747633845660,-450.0,0.00020273,2]
[361602952,1747633845669,-450.0,0.00020273,2]
[361602954,1747633845679,-450.0,0.00020273,2]
[361602956,1747633845689,-416.78600199,0.00020273,2]
[361602958,1747633845698,-450.0,0.00020273,2]
[361602960,1747633845708,-450.0,0.00020273,2]
[361602962,1747633845718,-450.0,0.00020273,2]
[361602964,1747633845728,-280.58846112,0.00020273,2]
[361602966,1747633845738,-450.0,0.00020273,2]
[361602968,1747633845747,-898.49,0.00020273,2]
[361602970,1747633845757,-450.0,0.00020273,2]
[361602972,1747633845766,-411.9717906,0.00020273,2]
[361602974,1747633845776,-450.0,0.00020273,2]
[361602976,1747633845791,-414.62636278,0.00020273,2]
[361602978,1747633845801,-411.75134961,0.00020273,2]
[361602980,1747633845810,-450.0,0.00020273,2]
[361602982,1747633845819,-416.50604655,0.00020273,2]
[361602984,1747633845829,-450.0,0.00020273,2]
[361602986,1747633845839,-450.0,0.00020273,2]
[361602988,1747633845848,-450.0,0.00020273,2]
[361602990,1747633845859,-417.11015244,0.00020273,2]
[361602992,1747633845868,-450.0,0.00020273,2]
[361602994,1747633845878,-450.0,0.00020273,2]
[361602996,1747633845887,-455.3295559,0.00020273,2]
[361602998,1747633845896,-450.0,0.00020273,2]
[361603000,1747633845906,-1226.4,0.00020273,2]
[361603002,1747633845916,-450.0,0.00020273,2]
[361603004,1747633845925,-450.0,0.00020273,2]
[361603006,1747633845934,-421.31867739,0.00020273,2]
[361603008,1747633845943,-450.0,0.00020273,2]
[361603010,1747633845953,-450.0,0.00020273,2]
[361603012,1747633845962,-450.0,0.00020273,2]
[361603014,1747633845972,-533.23471549,0.00020273,2]
[361603016,1747633845981,-450.0,0.00020273,2]
[361603018,1747633845990,-318.49600729,0.00020273,2]
[361603020,1747633846000,-450.0,0.00020273,2]
[361603022,1747633846009,-450.0,0.00020273,2]
[361603024,1747633846018,-450.0,0.00020273,2]
[361603040,1747633846148,-450.0,0.00020273,2]
[361603042,1747633846169,-450.0,0.00020273,2]
[361603044,1747633846179,-450.0,0.00020273,2]
[361603046,1747633846188,-450.0,0.00020273,2]
[361603048,1747633846197,-207.67551383,0.00020273,2]
[361603050,1747633846206,-450.0,0.00020273,2]
[361603052,1747633846215,-450.0,0.00020273,2]
[361603055,1747633846225,-935.25,0.00020273,2]
[361603057,1747633846234,-361.90806308,0.00020273,2]
[361603059,1747633846243,-418.18424445,0.00020273,2]
[361603061,1747633846253,-450.0,0.00020273,2]
[361603063,1747633846262,-450.0,0.00020273,2]
[361603065,1747633846271,-450.0,0.00020273,2]
[361603067,1747633846280,-416.09212202,0.00020273,2]
[361603069,1747633846289,-450.0,0.00020273,2]
[361603071,1747633846298,-450.0,0.00020273,2]
[361603073,1747633846307,-452.12438783,0.00020273,2]
[361603075,1747633846315,-450.0,0.00020273,2]
[361603077,1747633846325,-450.0,0.00020273,2]
[361603079,1747633846334,-450.0,0.00020273,2]
[361603081,1747633846343,-450.0,0.00020273,2]
[361603083,1747633846351,-166.30706205,0.0002028,2]
[361603085,1747633846360,-500.0,0.00020335,2]
[361603087,1747633846369,-500.0,0.00020339,2]
[361603089,1747633846378,-517.05333442,0.00020383,3]
[361603091,1747633846387,-424.57530097,0.00020547,2]
[361603093,1747633846396,-450.0,0.00020547,2]
[361603095,1747633846405,-411.63688308,0.00020547,2]
[361603097,1747633846414,-450.0,0.00020547,2]
[361603099,1747633846423,-450.0,0.00020547,2]
[361603101,1747633846432,-153.90667265,0.00020547,2]
[361603103,1747633846442,-450.0,0.00020547,2]
[361603105,1747633846451,-450.0,0.00020547,2]
[361603107,1747633846460,-292.63432145,0.00020547,2]
[361603109,1747633846470,-450.0,0.00020547,2]
[361603111,1747633846479,-573.95,0.00020547,2]
[361603113,1747633846488,-423.68083192,0.00020547,2]
[361603115,1747633846497,-2998.99,0.00020547,2]
[361603116,1747633846506,-450.0,0.00020547,2]
[361603119,1747633846517,-450.0,0.00020547,2]
[361603121,1747633846525,-531.99256771,0.00020547,2]
[361603122,1747633846535,-450.0,0.00020547,2]
[361603124,1747633846544,-515.83493224,0.00020547,2]
[361603127,1747633846553,-450.0,0.00020547,2]
[361603128,1747633846563,-450.0,0.00020547,2]
[361603130,1747633846572,-450.0,0.00020547,2]
[361603132,1747633846581,-450.0,0.00020547,2]
[361603134,1747633846590,-450.0,0.00020547,2]
[361603136,1747633846599,-450.0,0.00020547,2]
[361603138,1747633846609,-151.0,0.00020547,2]
[361603140,1747633846618,-450.0,0.00020547,2]
[361603142,1747633846627,-450.0,0.00020547,2]
[361603144,1747633846636,-450.0,0.00020547,2]
[361603146,1747633846646,-450.0,0.00020547,2]
[361603148,1747633846656,-633.58,0.00020547,2]
[361603150,1747633846665,-450.0,0.00020547,2]
[361603152,1747633846675,-494.37968478,0.00020547,2]
[361603154,1747633846684,-450.0,0.00020547,2]
[361603156,1747633846693,-450.0,0.00020547,2]